[Event "39th IND-chT 2019"]
[Site "Kolkata"]
[Date "2019.02.10"]
[Round "8.4"]
[White "Sengupta, Deep"]
[Black "Himanshu, Sharma"]
[Result "1/2-1/2"]
[ECO "B47"]
[WhiteElo "2555"]
[BlackElo "2441"]
[Annotator "ChessBase"]
[PlyCount "119"]
[EventDate "2019.??.??"]
[EventCountry "IND"]
[SourceTitle "playchess.com"]
[Source "ChessBase"]
[SourceQuality "1"]
[TimeControl "5400+30"]

1. e4 {[%emt 0:00:00]} c5 {[%emt 0:00:00]} 2. Nf3 {[%emt 0:00:00]} e6 {[%emt 0:00:05]} 3. d4 {[%emt 0:00:00]} cxd4 {[%emt 0:00:10]} 4. Nxd4 {[%emt 0:00:00]} Nc6 {[%emt 0:00:05]} 5. Nc3 {[%emt 0:00:00]} Qc7 {[%emt 0:01:54]} 6. g3 {[%emt 0:00:58]} a6 {[%emt 0:02:32]} 7. Bg2 {[%emt 0:00:05]} d6 {[%emt 0:02:26]} 8. O-O {[%emt 0:00:14]} Bd7 {[%emt 0:03:07]} 9. Re1 {[%emt 0:08:45]} Nf6 {[%emt 0:02:35]} 10. Nb3 {[%emt 0:14:36]} Be7 {[%emt 0:01:02]} 11. a4 {[%emt 0:00:28]} b6 {[%emt 0:06:33]} 12. f4 {[%emt 0:03:23]} Bc8 {[%emt 0:07:01]} 13. Qe2 {[%emt 0:18:29]} O-O {[%emt 0:05:15]} 14. Be3 {[%emt 0:09:50]} Bb7 {[%emt 0:02:44]} 15. g4 {[%emt 0:01:56]} Rfe8 {[%emt 0:02:44]} 16. g5 {[%emt 0:00:13]} Nd7 {[%emt 0:00:06]} 17. Rad1 {[%emt 0:02:07]} Bf8 {[%emt 0:01:49]} 18. Qf2 {[%emt 0:00:11]} Rab8 {[%emt 0:03:22]} 19. Rf1 {[%emt 0:02:24]} g6 {[%emt 0:01:09]} 20. Qh4 {[%emt 0:02:34]} Bg7 {[%emt 0:03:08]} 21. Rf3 {[%emt 0:00:44]} Nb4 {[%emt 0:01:31]} 22. Rh3 {[%emt 0:02:55]} Nf8 {[%emt 0:02:51]} 23. Rd2 {[%emt 0:01:37]} Bc8 {[%emt 0:05:41]} 24. Bf2 {[%emt 0:05:12]} Nc6 {[%emt 0:22:25]} 25. Rhd3 {[%emt 0:05:26]} Rd8 {[%emt 0:00:36]} 26. f5 {[%emt 0:00:11]} Ne5 {[%emt 0:01:46]} 27. f6 {[%emt 0:05:29]} Bh8 {[%emt 0:01:21]} 28. Qg3 {[%emt 0:05:00]} Nxd3 {[%emt 0:03:22]} 29. Qxd3 {[%emt 0:00:19]} Bb7 {[%emt 0:00:31]} 30. Qe3 {[%emt 0:01:52]} Ba8 {[%emt 0:05:30]} 31. Bf1 {[%emt 0:00:11]} Qc8 {[%emt 0:05:24]} 32. Nc1 {[%emt 0:00:22]} h6 {[%emt 0:02:55]} 33. h4 {[%emt 0:00:06]} Nh7 {[%emt 0:01:28]} 34. Qg3 {[%emt 0:02:56]} b5 {[%emt 0:02:33]} 35. axb5 {[%emt 0:04:59]} axb5 {[%emt 0:00:02]} 36. Nxb5 {[%emt 0:02:02]} Rxb5 {[%emt 0:00:03]} 37. Bxb5 {[%emt 0:00:03]} Qb7 {[%emt 0:00:03]} 38. Bd3 {[%emt 0:01:20]} Qxb2 {[%emt 0:00:11]} 39. Nb3 {[%emt 0:00:56]} Qb1+ {[%emt 0:01:02]} 40. Kh2 {[%emt 0:00:08]} hxg5 {[%emt 0:00:14]} 41. hxg5 {[%emt 0:00:01]} Nxf6 {[%emt 0:01:46]} 42. gxf6 {[%emt 0:00:57]} Bxf6 {[%emt 0:00:04]} 43. Bd4 {[%emt 0:00:50]} Bxd4 {[%emt 0:00:17]} 44. Nxd4 {[%emt 0:00:01]} Kg7 {[%emt 0:00:10]} 45. Qg1 {[%emt 0:01:09]} Qb8 {[%emt 0:01:10]} 46. Kg2 {[%emt 0:01:20]} d5 {[%emt 0:00:35]} 47. Qe3 {[%emt 0:00:27]} dxe4 {[%emt 0:00:51]} 48. Bxe4 {[%emt 0:00:14]} Qe5 {[%emt 0:00:41]} 49. Nxe6+ {[%emt 0:00:56]} Qxe6 {[%emt 0:00:00]} 50. Rxd8 {[%emt 0:00:21]} Qxe4+ {[%emt 0:01:16]} 51. Qxe4 {[%emt 0:00:07]} Bxe4+ {[%emt 0:00:02]} 52. Kg3 {[%emt 0:00:08]} Bxc2 {[%emt 0:00:05]} 53. Rd2 {[%emt 0:00:55]} Bb3 {[%emt 0:00:18]} 54. Kf4 {[%emt 0:00:04]} Be6 {[%emt 0:00:51]} 55. Rf2 {[%emt 0:00:35]} f6 {[%emt 0:00:50]} 56. Rg2 {[%emt 0:00:02]} Kh6 {[%emt 0:00:45]} 57. Rh2+ {[%emt 0:00:01]} Kg7 {[%emt 0:00:05]} 58. Rg2 {[%emt 0:00:01]} Bf7 {[%emt 0:00:22]} 59. Rg1 {[%emt 0:00:03]} Be6 {[%emt 0:00:31]} 60. Ke4 1/2-1/2

[Event "39th IND-chT 2019"]
[Site "Kolkata"]
[Date "2019.02.10"]
[Round "8.6"]
[White "Satyapragyan, Swayangsu"]
[Black "Sahoo, Utkal Ranjan"]
[Result "1/2-1/2"]
[ECO "C47"]
[WhiteElo "2381"]
[BlackElo "2356"]
[Annotator "NA"]
[PlyCount "72"]
[EventDate "2019.??.??"]
[EventCountry "IND"]
[SourceTitle "playchess.com"]
[Source "ChessBase"]
[SourceQuality "1"]
[TimeControl "5400+30"]

1. e4 {[%emt 0:00:46]} e5 {[%emt 0:00:00]} 2. Nf3 {[%emt 0:00:05]} Nc6 {[%emt 0:00:00]} 3. Nc3 {[%emt 0:00:24]} Nf6 {[%emt 0:00:33]} 4. d4 {[%emt 0:00:05]} exd4 {[%emt 0:00:54]} 5. Nxd4 {[%emt 0:00:14]} Bb4 {[%emt 0:03:32]} 6. Nxc6 {[%emt 0:00:14]} bxc6 {[%emt 0:00:28]} 7. Bd3 {[%emt 0:00:05]} d5 {[%emt 0:00:42]} 8. exd5 {[%emt 0:00:05]} cxd5 {[%emt 0:00:22]} 9. O-O {[%emt 0:00:06]} O-O {[%emt 0:00:06]} 10. h3 {[%emt 0:00:09]} c6 {[%emt 0:04:37]} 11. Qf3 {[%emt 0:00:23]} Bd6 {[%emt 0:01:05]} 12. Bf4 {[%emt 0:02:17]} Rb8 {[%emt 0:02:59]} 13. b3 {[%emt 0:03:31]} Qc7 {[%emt 0:02:40]} 14. Bxd6 {[%emt 0:06:39]} Qxd6 {[%emt 0:00:02]} 15. Rfe1 {[%emt 0:01:37]} Bd7 {[%emt 0:01:18]} 16. Qg3 {[%emt 0:17:12]} Qxg3 {[%emt 0:07:33]} 17. fxg3 {[%emt 0:00:06]} c5 {[%emt 0:06:17]} 18. Re7 {[%emt 0:04:57]} Rfd8 {[%emt 0:02:46]} 19. g4 {[%emt 0:04:23]} h6 {[%emt 0:01:34]} 20. Rf1 {[%emt 0:04:59]} Rb6 {[%emt 0:04:17]} 21. Re2 {[%emt 0:03:58]} Re6 {[%emt 0:15:27]} 22. Ref2 {[%emt 0:02:21]} Re5 {[%emt 0:05:00]} 23. Ne2 {[%emt 0:09:36]} Rde8 {[%emt 0:06:20]} 24. Ng3 {[%emt 0:00:55]} Re1 {[%emt 0:00:23]} 25. Rxe1 {[%emt 0:07:02]} Rxe1+ {[%emt 0:00:03]} 26. Rf1 {[%emt 0:00:08]} Rxf1+ {[%emt 0:04:00]} 27. Kxf1 {[%emt 0:00:09]} g6 {[%emt 0:01:47]} 28. c3 {[%emt 0:01:41]} Kf8 {[%emt 0:01:28]} 29. a3 {[%emt 0:03:26]} Ke7 {[%emt 0:03:52]} 30. Ke2 {[%emt 0:03:38]} Kd6 {[%emt 0:00:45]} 31. Nf1 {[%emt 0:08:34]} Bc6 {[%emt 0:03:06]} 32. Kf2 {[%emt 0:06:00]} Nd7 {[%emt 0:02:11]} 33. Nd2 {[%emt 0:02:18]} Ne5 {[%emt 0:00:29]} 34. Bf1 {[%emt 0:00:49]} a5 {[%emt 0:04:59]} 35. Ke3 {[%emt 0:01:45]} Bd7 {[%emt 0:01:35]} 36. Be2 {[%emt 0:01:33]} Bc6 {Ke4} 1/2-1/2